[Event "Titled Tuesday Blitz May 31 Late 2022"]
[White "Lomaia, Diana"]
[Black "Trost, Edvin"]
[WhiteFideId "13612476"]
[BlackFideId "1729519"]
[WhiteElo "1744"]
[BlackElo "2165"]
[Result "1/2-1/2"]
[Round "04"]
[TimeControl "180+1"]
[Date "2022.06.01"]
[WhiteClock "0:00:06"]
[BlackClock "0:00:11"]

1. d4 {[%clk 0:03:00]}  d5 {[%clk 0:02:56]} 2. c4 {[%clk 0:03:00]}  e6 {[%clk 0:02:55]} 3. Nc3 {[%clk 0:03:00]}  c6 {[%clk 0:02:53]} 4. e3 {[%clk 0:02:54]}  Bd6 {[%clk 0:02:51]} 5. Nf3 {[%clk 0:02:54]}  f5 {[%clk 0:02:50]} 6. b3 {[%clk 0:02:53]}  Nh6 {[%clk 0:02:50]} 7. Bb2 {[%clk 0:02:53]}  Nf7 {[%clk 0:02:49]} 8. Bd3 {[%clk 0:02:52]}  Nd7 {[%clk 0:02:50]} 9. O-O {[%clk 0:02:52]}  Qf6 {[%clk 0:02:45]} 10. Ne2 {[%clk 0:02:50]}  g5 {[%clk 0:02:45]} 11. cxd5 {[%clk 0:02:47]}  exd5 {[%clk 0:02:44]} 12. Rc1 {[%clk 0:02:39]}  g4 {[%clk 0:02:40]} 13. Ne1 {[%clk 0:02:39]}  h5 {[%clk 0:02:40]} 14. Nf4 {[%clk 0:02:37]}  Nf8 {[%clk 0:02:36]} 15. f3 {[%clk 0:02:36]}  Bxf4 {[%clk 0:02:29]} 16. exf4 {[%clk 0:02:35]}  Ne6 {[%clk 0:02:29]} 17. Qd2 {[%clk 0:02:30]}  O-O {[%clk 0:02:28]} 18. Bb1 {[%clk 0:02:20]}  Bd7 {[%clk 0:02:20]} 19. fxg4 {[%clk 0:02:15]}  hxg4 {[%clk 0:02:19]} 20. g3 {[%clk 0:02:15]}  Kg7 {[%clk 0:02:19]} 21. Qe3 {[%clk 0:02:10]}  Rae8 {[%clk 0:02:18]} 22. Nd3 {[%clk 0:02:07]}  Ned8 {[%clk 0:01:39]} 23. Ne5 {[%clk 0:02:06]}  Nxe5 {[%clk 0:01:38]} 24. fxe5 {[%clk 0:02:03]}  Qg6 {[%clk 0:01:35]} 25. Ba3 {[%clk 0:02:01]}  Rf7 {[%clk 0:01:34]} 26. Rf2 {[%clk 0:01:57]}  Ne6 {[%clk 0:01:34]} 27. Rcf1 {[%clk 0:01:57]}  Ng5 {[%clk 0:01:33]} 28. Kg2 {[%clk 0:01:49]}  Be6 {[%clk 0:01:31]} 29. Bc1 {[%clk 0:01:47]}  Ne4 {[%clk 0:01:29]} 30. Bxe4 {[%clk 0:01:46]}  dxe4 {[%clk 0:01:30]} 31. Ba3 {[%clk 0:01:39]}  Rh8 {[%clk 0:01:29]} 32. Kg1 {[%clk 0:01:37]}  Kg8 {[%clk 0:01:28]} 33. d5 {[%clk 0:01:34]}  Bxd5 {[%clk 0:01:25]} 34. Qxa7 {[%clk 0:01:34]}  Kh7 {[%clk 0:01:23]} 35. Qd4 {[%clk 0:01:27]}  Re8 {[%clk 0:01:22]} 36. Bd6 {[%clk 0:01:25]}  Re6 {[%clk 0:01:20]} 37. b4 {[%clk 0:01:19]}  Qg7 {[%clk 0:01:20]} 38. Qe3 {[%clk 0:01:15]}  Qg6 {[%clk 0:01:16]} 39. a4 {[%clk 0:01:13]}  Bc4 {[%clk 0:01:16]} 40. Rc1 {[%clk 0:01:12]}  Bd3 {[%clk 0:01:16]} 41. Qf4 {[%clk 0:01:06]}  Re8 {[%clk 0:00:57]} 42. h3 {[%clk 0:01:05]}  gxh3 {[%clk 0:00:55]} 43. Rh2 {[%clk 0:01:05]}  Kg8 {[%clk 0:00:55]} 44. Rxh3 {[%clk 0:01:04]}  Rh7 {[%clk 0:00:54]} 45. Rxh7 {[%clk 0:01:03]}  Qxh7 {[%clk 0:00:55]} 46. Kg2 {[%clk 0:01:01]}  e3 {[%clk 0:00:50]} 47. Qg5+ {[%clk 0:00:52]}  Kh8 {[%clk 0:00:45]} 48. Qf6+ {[%clk 0:00:51]}  Kg8 {[%clk 0:00:43]} 49. Qg5+ {[%clk 0:00:46]}  Qg7 {[%clk 0:00:41]} 50. Qxe3 {[%clk 0:00:43]}  Be4+ {[%clk 0:00:41]} 51. Kf2 {[%clk 0:00:43]}  Re6 {[%clk 0:00:40]} 52. Ke2 {[%clk 0:00:34]}  Rh6 {[%clk 0:00:39]} 53. Kd2 {[%clk 0:00:34]}  Rh2+ {[%clk 0:00:39]} 54. Kc3 {[%clk 0:00:35]}  Qf7 {[%clk 0:00:26]} 55. Qg5+ {[%clk 0:00:34]}  Kh7 {[%clk 0:00:25]} 56. Qf6 {[%clk 0:00:23]}  Qxf6 {[%clk 0:00:17]} 57. exf6 {[%clk 0:00:24]}  Kg6 {[%clk 0:00:17]} 58. Be5 {[%clk 0:00:23]}  Ra2 {[%clk 0:00:17]} 59. a5 {[%clk 0:00:22]}  Ra3+ {[%clk 0:00:17]} 60. Kd4 {[%clk 0:00:22]}  Rd3+ {[%clk 0:00:17]} 61. Kc4 {[%clk 0:00:21]}  Rd5 {[%clk 0:00:17]} 62. Bd4 {[%clk 0:00:18]}  Rd8 {[%clk 0:00:16]} 63. Ra1 {[%clk 0:00:15]}  Rh8 {[%clk 0:00:15]} 64. a6 {[%clk 0:00:15]}  bxa6 {[%clk 0:00:15]} 65. Rxa6 {[%clk 0:00:16]}  Rh1 {[%clk 0:00:15]} 66. Kc5 {[%clk 0:00:15]}  Rc1+ {[%clk 0:00:15]} 67. Kd6 {[%clk 0:00:16]}  Rd1 {[%clk 0:00:14]} 68. Ke5 {[%clk 0:00:16]}  Bd5 {[%clk 0:00:13]} 69. Ra7 {[%clk 0:00:14]}  Re1+ {[%clk 0:00:13]} 70. Kd6 {[%clk 0:00:14]}  Bf7 {[%clk 0:00:12]} 71. Re7 {[%clk 0:00:13]}  Rd1 {[%clk 0:00:11]} 72. Kc5 {[%clk 0:00:13]}  Rc1+ {[%clk 0:00:11]} 73. Kb6 {[%clk 0:00:13]}  Rc4 {[%clk 0:00:11]} 74. Rd7 {[%clk 0:00:10]}  Rxb4+ {[%clk 0:00:10]} 75. Kc5 {[%clk 0:00:10]}  Rc4+ {[%clk 0:00:10]} 76. Kb6 {[%clk 0:00:11]}  Rc2 {[%clk 0:00:09]} 77. Rd6 {[%clk 0:00:09]}  c5 {[%clk 0:00:09]} 78. Bxc5 {[%clk 0:00:09]}  Rb2+ {[%clk 0:00:10]} 79. Kc6 {[%clk 0:00:09]}  Rc2 {[%clk 0:00:10]} 80. Kb6 {[%clk 0:00:08]}  Rg2 {[%clk 0:00:09]} 81. Rd3 {[%clk 0:00:06]}  Kxf6 {[%clk 0:00:08]} 82. Bd4+ {[%clk 0:00:06]}  Kg6 {[%clk 0:00:08]} 83. Be5 {[%clk 0:00:06]}  Re2 {[%clk 0:00:08]} 84. Bf4 {[%clk 0:00:06]}  Kh5 {[%clk 0:00:07]} 85. Kc5 {[%clk 0:00:07]}  Kg4 {[%clk 0:00:07]} 86. Kd6 {[%clk 0:00:07]}  Bc4 {[%clk 0:00:07]} 87. Rd4 {[%clk 0:00:07]}  Be6 {[%clk 0:00:06]} 88. Ke7 {[%clk 0:00:06]}  Ba2+ {[%clk 0:00:05]} 89. Kf6 {[%clk 0:00:06]}  Re6+ {[%clk 0:00:03]} 90. Kg7 {[%clk 0:00:06]}  Ra6 {[%clk 0:00:04]} 91. Be5+ {[%clk 0:00:05]}  Kh3 {[%clk 0:00:04]} 92. Rh4+ {[%clk 0:00:05]}  Kg2 {[%clk 0:00:04]} 93. Rf4 {[%clk 0:00:05]}  Bb1 {[%clk 0:00:04]} 94. Rc4 {[%clk 0:00:03]}  Be4 {[%clk 0:00:04]} 95. Rc3 {[%clk 0:00:03]}  Kh3 {[%clk 0:00:04]} 96. Kf7 {[%clk 0:00:02]}  Ra5 {[%clk 0:00:04]} 97. Bf4 {[%clk 0:00:02]}  Ra6 {[%clk 0:00:04]} 98. Ke8 {[%clk 0:00:02]}  Kg4 {[%clk 0:00:04]} 99. Ke7 {[%clk 0:00:02]}  Kh5 {[%clk 0:00:04]} 100. Kd7 {[%clk 0:00:03]}  Ra7+ {[%clk 0:00:03]} 101. Kd6 {[%clk 0:00:03]}  Ra6+ {[%clk 0:00:04]} 102. Ke5 {[%clk 0:00:03]}  Kg6 {[%clk 0:00:04]} 103. Rc7 {[%clk 0:00:02]}  Ra5+ {[%clk 0:00:04]} 104. Kd4 {[%clk 0:00:03]}  Ra4+ {[%clk 0:00:05]} 105. Ke5 {[%clk 0:00:03]}  Kh5 {[%clk 0:00:05]} 106. Rh7+ {[%clk 0:00:03]}  Kg4 {[%clk 0:00:05]} 107. Rg7+ {[%clk 0:00:03]}  Kf3 {[%clk 0:00:05]} 108. Rh7 {[%clk 0:00:03]}  Ra5+ {[%clk 0:00:06]} 109. Kf6 {[%clk 0:00:04]}  Ra6+ {[%clk 0:00:06]} 110. Kg5 {[%clk 0:00:04]}  Ra1 {[%clk 0:00:06]} 111. Rh2 {[%clk 0:00:05]}  Rg1 {[%clk 0:00:05]} 112. Rb2 {[%clk 0:00:05]}  Rc1 {[%clk 0:00:05]} 113. Bxc1 {[%clk 0:00:04]}  Kxg3 {[%clk 0:00:06]} 114. Bf4+ {[%clk 0:00:02]}  Kf3 {[%clk 0:00:05]} 115. Rb8 {[%clk 0:00:03]}  Ke2 {[%clk 0:00:06]} 116. Rh8 {[%clk 0:00:04]}  Kd3 {[%clk 0:00:07]} 117. Rh2 {[%clk 0:00:04]}  Kc4 {[%clk 0:00:08]} 118. Kf6 {[%clk 0:00:05]}  Kd5 {[%clk 0:00:09]} 119. Rf2 {[%clk 0:00:04]}  Kd4 {[%clk 0:00:10]} 120. Be5+ {[%clk 0:00:04]}  Kd3 {[%clk 0:00:10]} 121. Ra2 {[%clk 0:00:05]}  Ke3 {[%clk 0:00:11]} 122. Ra6 {[%clk 0:00:05]}  Kd2 {[%clk 0:00:12]} 123. Kg5 {[%clk 0:00:06]}  Bd3 {[%clk 0:00:12]} 124. Kf4 {[%clk 0:00:06]}  Bxa6 {[%clk 0:00:11]} 125. Kxf5 {[%clk 0:00:06]} 1/2-1/2


[Site "https://www.chess.com"]

[Event "Titled Tuesday Blitz May 31 Late 2022"]
[White "Mikhalsky, Vladimir"]
[Black "Ardila, Oscar Humberto"]
[WhiteFideId "14144352"]
[BlackFideId "4404742"]
[WhiteElo "2301"]
[BlackElo "1928"]
[Result "1-0"]
[Round "04"]
[TimeControl "180+1"]
[Date "2022.06.01"]
[WhiteClock "0:00:13"]
[BlackClock "0:00:15"]

1. d4 {[%clk 0:03:00]}  Nf6 {[%clk 0:02:57]} 2. c4 {[%clk 0:02:59]}  e6 {[%clk 0:02:56]} 3. Nf3 {[%clk 0:02:58]}  Bb4+ {[%clk 0:02:56]} 4. Bd2 {[%clk 0:02:58]}  Qe7 {[%clk 0:02:55]} 5. g3 {[%clk 0:02:58]}  O-O {[%clk 0:02:54]} 6. Bg2 {[%clk 0:02:58]}  Nc6 {[%clk 0:02:53]} 7. O-O {[%clk 0:02:58]}  Bxd2 {[%clk 0:02:53]} 8. Nbxd2 {[%clk 0:02:56]}  d6 {[%clk 0:02:53]} 9. a3 {[%clk 0:02:44]}  e5 {[%clk 0:02:53]} 10. d5 {[%clk 0:02:37]}  Nb8 {[%clk 0:02:49]} 11. b4 {[%clk 0:02:35]}  Nbd7 {[%clk 0:02:47]} 12. Nb3 {[%clk 0:02:32]}  Re8 {[%clk 0:02:46]} 13. Rc1 {[%clk 0:02:29]}  Nf8 {[%clk 0:02:41]} 14. c5 {[%clk 0:02:28]}  Ng6 {[%clk 0:02:38]} 15. e3 {[%clk 0:02:26]}  Bg4 {[%clk 0:02:36]} 16. h3 {[%clk 0:02:25]}  Bd7 {[%clk 0:02:19]} 17. Na5 {[%clk 0:02:15]}  Rab8 {[%clk 0:02:14]} 18. c6 {[%clk 0:02:09]}  bxc6 {[%clk 0:02:12]} 19. Nxc6 {[%clk 0:02:09]}  Bxc6 {[%clk 0:02:12]} 20. Rxc6 {[%clk 0:02:08]}  Rb6 {[%clk 0:02:11]} 21. Qa4 {[%clk 0:01:36]}  Nxd5 {[%clk 0:02:00]} 22. Nxe5 {[%clk 0:01:35]}  Nxe5 {[%clk 0:01:58]} 23. Bxd5 {[%clk 0:01:30]}  Nxc6 {[%clk 0:01:56]} 24. Bxc6 {[%clk 0:01:30]}  Rf8 {[%clk 0:01:49]} 25. Rd1 {[%clk 0:01:29]}  a6 {[%clk 0:01:47]} 26. Qc2 {[%clk 0:01:18]}  Qe6 {[%clk 0:01:43]} 27. Kg2 {[%clk 0:01:16]}  Rd8 {[%clk 0:01:32]} 28. Bd5 {[%clk 0:01:15]}  Qe7 {[%clk 0:01:31]} 29. Rd4 {[%clk 0:01:11]}  c6 {[%clk 0:01:22]} 30. Rh4 {[%clk 0:00:51]}  h6 {[%clk 0:01:16]} 31. Bf3 {[%clk 0:00:50]}  d5 {[%clk 0:01:14]} 32. Qc3 {[%clk 0:00:47]}  Qf6 {[%clk 0:01:12]} 33. Qxf6 {[%clk 0:00:46]}  gxf6 {[%clk 0:01:12]} 34. Rxh6 {[%clk 0:00:46]}  Kg7 {[%clk 0:01:12]} 35. Rh4 {[%clk 0:00:46]}  Rd6 {[%clk 0:01:06]} 36. Rg4+ {[%clk 0:00:46]}  Kh6 {[%clk 0:00:59]} 37. Kf1 {[%clk 0:00:45]}  f5 {[%clk 0:00:58]} 38. Rh4+ {[%clk 0:00:44]}  Kg6 {[%clk 0:00:58]} 39. Ke2 {[%clk 0:00:44]}  Rb8 {[%clk 0:00:57]} 40. Kd3 {[%clk 0:00:44]}  Ra8 {[%clk 0:00:56]} 41. Kd4 {[%clk 0:00:43]}  a5 {[%clk 0:00:55]} 42. Kc5 {[%clk 0:00:43]}  Re6 {[%clk 0:00:51]} 43. g4 {[%clk 0:00:41]}  fxg4 {[%clk 0:00:48]} 44. Rxg4+ {[%clk 0:00:41]}  Kf6 {[%clk 0:00:47]} 45. Rf4+ {[%clk 0:00:41]}  Ke7 {[%clk 0:00:46]} 46. Bg4 {[%clk 0:00:38]}  Rh6 {[%clk 0:00:45]} 47. e4 {[%clk 0:00:37]}  axb4 {[%clk 0:00:41]} 48. axb4 {[%clk 0:00:36]}  Rd8 {[%clk 0:00:36]} 49. e5 {[%clk 0:00:33]}  f6 {[%clk 0:00:33]} 50. e6 {[%clk 0:00:28]}  Rd6 {[%clk 0:00:30]} 51. Rf3 {[%clk 0:00:24]}  Rg6 {[%clk 0:00:28]} 52. Ra3 {[%clk 0:00:24]}  f5 {[%clk 0:00:26]} 53. Bxf5 {[%clk 0:00:22]}  Rgxe6 {[%clk 0:00:23]} 54. Ra7+ {[%clk 0:00:21]}  Kf6 {[%clk 0:00:23]} 55. Bxe6 {[%clk 0:00:20]}  Rxe6 {[%clk 0:00:23]} 56. Rc7 {[%clk 0:00:21]}  Re2 {[%clk 0:00:21]} 57. Rxc6+ {[%clk 0:00:21]}  Ke5 {[%clk 0:00:22]} 58. f4+ {[%clk 0:00:18]}  Kxf4 {[%clk 0:00:15]} 59. Kxd5 {[%clk 0:00:18]}  Rb2 {[%clk 0:00:15]} 60. Kc5 {[%clk 0:00:18]}  Kg3 {[%clk 0:00:15]} 61. Rf6 {[%clk 0:00:17]}  Kxh3 {[%clk 0:00:14]} 62. b5 {[%clk 0:00:17]}  Kg4 {[%clk 0:00:15]} 63. b6 {[%clk 0:00:17]}  Kg5 {[%clk 0:00:16]} 64. Rf1 {[%clk 0:00:17]}  Rc2+ {[%clk 0:00:16]} 65. Kd6 {[%clk 0:00:17]}  Rd2+ {[%clk 0:00:16]} 66. Kc7 {[%clk 0:00:16]}  Rc2+ {[%clk 0:00:17]} 67. Kb8 {[%clk 0:00:16]}  Rb2 {[%clk 0:00:17]} 68. b7 {[%clk 0:00:16]}  Kg6 {[%clk 0:00:17]} 69. Rf4 {[%clk 0:00:13]}  Kg7 {[%clk 0:00:17]} 70. Rf5 {[%clk 0:00:13]}  Kg6 {[%clk 0:00:16]} 71. Rc5 {[%clk 0:00:13]}  Kf6 {[%clk 0:00:15]} 72. Kc7 {[%clk 0:00:13]} 1-0


[Site "https://www.chess.com"]

[Event "Titled Tuesday Blitz May 31 Late 2022"]
[White "Milikow, Elie"]
[Black "Suder, Jakub"]
[WhiteFideId "371281868"]
[BlackFideId "1195310"]
[WhiteElo "2257"]
[BlackElo "2058"]
[Result "0-1"]
[Round "04"]
[TimeControl "180+1"]
[Date "2022.05.31"]
[WhiteClock "0:00:02"]
[BlackClock "0:00:08"]

1. e4 {[%clk 0:03:00]}  c5 {[%clk 0:02:59]} 2. Nf3 {[%clk 0:03:01]}  e6 {[%clk 0:02:56]} 3. d4 {[%clk 0:03:01]}  cxd4 {[%clk 0:02:57]} 4. Nxd4 {[%clk 0:03:01]}  Nc6 {[%clk 0:02:57]} 5. c4 {[%clk 0:03:01]}  Nf6 {[%clk 0:02:56]} 6. Nc3 {[%clk 0:03:02]}  Bb4 {[%clk 0:02:56]} 7. Nxc6 {[%clk 0:02:56]}  bxc6 {[%clk 0:02:56]} 8. e5 {[%clk 0:02:56]}  Ne4 {[%clk 0:02:53]} 9. Qd4 {[%clk 0:02:40]}  f5 {[%clk 0:02:27]} 10. exf6 {[%clk 0:02:38]}  Qxf6 {[%clk 0:02:20]} 11. Qxf6 {[%clk 0:02:23]}  gxf6 {[%clk 0:02:20]} 12. Bd3 {[%clk 0:02:16]}  Nxc3 {[%clk 0:02:13]} 13. Bd2 {[%clk 0:02:07]}  Nd5 {[%clk 0:02:02]} 14. cxd5 {[%clk 0:02:04]}  Bxd2+ {[%clk 0:02:02]} 15. Kxd2 {[%clk 0:02:05]}  cxd5 {[%clk 0:02:02]} 16. Rhc1 {[%clk 0:02:05]}  Rb8 {[%clk 0:02:01]} 17. b3 {[%clk 0:01:55]}  Bb7 {[%clk 0:01:41]} 18. Rc7 {[%clk 0:01:53]}  a6 {[%clk 0:01:30]} 19. b4 {[%clk 0:01:52]}  Ke7 {[%clk 0:01:23]} 20. a4 {[%clk 0:01:40]}  Bc6 {[%clk 0:01:15]} 21. Kc3 {[%clk 0:01:29]}  d4+ {[%clk 0:00:57]} 22. Kb3 {[%clk 0:01:09]}  a5 {[%clk 0:00:57]} 23. b5 {[%clk 0:01:06]}  Bxg2 {[%clk 0:00:56]} 24. Rac1 {[%clk 0:01:04]}  Kd6 {[%clk 0:00:52]} 25. Kb2 {[%clk 0:00:47]}  Bb7 {[%clk 0:00:47]} 26. b6 {[%clk 0:00:37]}  Bc6 {[%clk 0:00:43]} 27. Ra7 {[%clk 0:00:33]}  Rxb6+ {[%clk 0:00:42]} 28. Ka3 {[%clk 0:00:33]}  Rhb8 {[%clk 0:00:40]} 29. Bc4 {[%clk 0:00:32]}  Rb2 {[%clk 0:00:30]} 30. f4 {[%clk 0:00:26]}  Rxh2 {[%clk 0:00:26]} 31. Rxa5 {[%clk 0:00:26]}  Rbb2 {[%clk 0:00:21]} 32. Rd1 {[%clk 0:00:22]}  e5 {[%clk 0:00:19]} 33. fxe5+ {[%clk 0:00:22]}  fxe5 {[%clk 0:00:20]} 34. Rf1 {[%clk 0:00:22]}  Rbc2 {[%clk 0:00:18]} 35. Rf6+ {[%clk 0:00:20]}  Kc7 {[%clk 0:00:17]} 36. Bb3 {[%clk 0:00:20]}  Rc3 {[%clk 0:00:16]} 37. Kb4 {[%clk 0:00:15]}  Rb2 {[%clk 0:00:12]} 38. Rxe5 {[%clk 0:00:15]}  Rbxb3+ {[%clk 0:00:11]} 39. Ka5 {[%clk 0:00:16]}  d3 {[%clk 0:00:12]} 40. Ka6 {[%clk 0:00:07]}  d2 {[%clk 0:00:10]} 41. Re8 {[%clk 0:00:02]}  d1=Q {[%clk 0:00:09]} 42. Rc8+ {[%clk 0:00:03]}  Kxc8 {[%clk 0:00:08]} 43. Rf8+ {[%clk 0:00:03]}  Kc7 {[%clk 0:00:09]} 44. Rb8 {[%clk 0:00:02]}  Qd3+ {[%clk 0:00:08]} 45. Ka7 {[%clk 0:00:02]}  Qd4+ {[%clk 0:00:08]} 46. Rb6 {[%clk 0:00:02]}  Qxb6# {[%clk 0:00:08]} 0-1


[Site "https://www.chess.com"]

[Event "Titled Tuesday Blitz May 31 Late 2022"]
[White "Moroni, Luca Jr"]
[Black "Martic, Ivan"]
[WhiteFideId "865834"]
[BlackFideId "929301"]
[WhiteElo "2573"]
[BlackElo "2317"]
[Result "1-0"]
[Round "04"]
[TimeControl "180+1"]
[Date "2022.05.31"]
[WhiteClock "0:00:27"]
[BlackClock "0:00:51"]

1. d4 {[%clk 0:03:00]}  Nf6 {[%clk 0:03:00]} 2. c4 {[%clk 0:03:00]}  g6 {[%clk 0:03:00]} 3. g3 {[%clk 0:03:01]}  Bg7 {[%clk 0:03:00]} 4. Bg2 {[%clk 0:03:01]}  O-O {[%clk 0:03:01]} 5. Nc3 {[%clk 0:03:02]}  d6 {[%clk 0:03:00]} 6. Nf3 {[%clk 0:03:02]}  Nbd7 {[%clk 0:02:57]} 7. O-O {[%clk 0:03:02]}  e5 {[%clk 0:02:57]} 8. e4 {[%clk 0:03:02]}  c6 {[%clk 0:02:57]} 9. b3 {[%clk 0:03:01]}  exd4 {[%clk 0:02:52]} 10. Nxd4 {[%clk 0:03:02]}  Re8 {[%clk 0:02:52]} 11. Re1 {[%clk 0:03:01]}  a5 {[%clk 0:02:50]} 12. h3 {[%clk 0:02:59]}  Nc5 {[%clk 0:02:49]} 13. Bf4 {[%clk 0:02:46]}  Nh5 {[%clk 0:02:48]} 14. Be3 {[%clk 0:02:46]}  Nf6 {[%clk 0:02:48]} 15. Qc2 {[%clk 0:02:41]}  Qe7 {[%clk 0:02:45]} 16. Rad1 {[%clk 0:02:23]}  Nfd7 {[%clk 0:02:35]} 17. f4 {[%clk 0:02:15]}  h5 {[%clk 0:02:34]} 18. Bf2 {[%clk 0:02:03]}  Nf8 {[%clk 0:02:29]} 19. Nf3 {[%clk 0:01:25]}  Bd7 {[%clk 0:02:07]} 20. Bd4 {[%clk 0:01:14]}  Rad8 {[%clk 0:02:02]} 21. Bxg7 {[%clk 0:01:12]}  Kxg7 {[%clk 0:02:02]} 22. Qf2 {[%clk 0:01:11]}  Bc8 {[%clk 0:01:59]} 23. Kh2 {[%clk 0:01:10]}  Kg8 {[%clk 0:01:37]} 24. Ng5 {[%clk 0:01:03]}  Nfe6 {[%clk 0:01:27]} 25. Nxe6 {[%clk 0:01:00]}  Qxe6 {[%clk 0:01:23]} 26. e5 {[%clk 0:00:55]}  Na6 {[%clk 0:01:09]} 27. exd6 {[%clk 0:00:51]}  Qf6 {[%clk 0:01:09]} 28. Rxe8+ {[%clk 0:00:44]}  Rxe8 {[%clk 0:01:10]} 29. Ne4 {[%clk 0:00:44]}  Qf5 {[%clk 0:01:07]} 30. g4 {[%clk 0:00:31]}  hxg4 {[%clk 0:01:05]} 31. hxg4 {[%clk 0:00:31]}  Qe6 {[%clk 0:00:59]} 32. d7 {[%clk 0:00:31]}  Bxd7 {[%clk 0:00:56]} 33. Rxd7 {[%clk 0:00:32]}  Kf8 {[%clk 0:00:51]} 34. Qd4 {[%clk 0:00:27]} 1-0


[Site "https://www.chess.com"]

[Event "Titled Tuesday Blitz May 31 Late 2022"]
[White "Msellek, Ilyass"]
[Black "Urazayev, Arystanbek"]
[WhiteFideId "675938"]
[BlackFideId "13709810"]
[WhiteElo "2221"]
[BlackElo "2422"]
[Result "1-0"]
[Round "04"]
[TimeControl "180+1"]
[Date "2022.06.01"]
[WhiteClock "0:00:09"]
[BlackClock "0:00:06"]

1. Nf3 {[%clk 0:02:54]}  d5 {[%clk 0:03:00]} 2. c4 {[%clk 0:02:52]}  c6 {[%clk 0:02:59]} 3. g3 {[%clk 0:02:52]}  Nf6 {[%clk 0:03:00]} 4. Bg2 {[%clk 0:02:52]}  Bf5 {[%clk 0:03:00]} 5. O-O {[%clk 0:02:52]}  e6 {[%clk 0:02:59]} 6. cxd5 {[%clk 0:02:52]}  exd5 {[%clk 0:02:59]} 7. d3 {[%clk 0:02:53]}  Nbd7 {[%clk 0:02:58]} 8. Nc3 {[%clk 0:02:52]}  Be7 {[%clk 0:02:58]} 9. Nh4 {[%clk 0:02:43]}  Be6 {[%clk 0:02:57]} 10. e4 {[%clk 0:02:42]}  dxe4 {[%clk 0:02:56]} 11. dxe4 {[%clk 0:02:43]}  O-O {[%clk 0:02:54]} 12. Be3 {[%clk 0:02:36]}  Ng4 {[%clk 0:02:48]} 13. Nf5 {[%clk 0:02:25]}  Nxe3 {[%clk 0:02:44]} 14. Nxe3 {[%clk 0:02:22]}  Bc5 {[%clk 0:02:43]} 15. Qe2 {[%clk 0:02:20]}  Qc7 {[%clk 0:02:31]} 16. Rad1 {[%clk 0:02:13]}  Rad8 {[%clk 0:02:31]} 17. h4 {[%clk 0:02:13]}  Rfe8 {[%clk 0:02:30]} 18. h5 {[%clk 0:02:12]}  h6 {[%clk 0:02:30]} 19. b3 {[%clk 0:02:06]}  Ne5 {[%clk 0:02:28]} 20. Kh1 {[%clk 0:01:53]}  Bd4 {[%clk 0:02:21]} 21. Nb1 {[%clk 0:01:48]}  Qb6 {[%clk 0:02:19]} 22. Nc2 {[%clk 0:01:35]}  c5 {[%clk 0:02:06]} 23. f3 {[%clk 0:01:24]}  Bd7 {[%clk 0:01:55]} 24. Nd2 {[%clk 0:01:19]}  Bb5 {[%clk 0:01:52]} 25. Nc4 {[%clk 0:01:10]}  Bxc4 {[%clk 0:01:52]} 26. bxc4 {[%clk 0:01:10]}  Qa6 {[%clk 0:01:52]} 27. f4 {[%clk 0:01:04]}  Qxc4 {[%clk 0:01:49]} 28. Qd2 {[%clk 0:00:57]}  Ng4 {[%clk 0:01:41]} 29. e5 {[%clk 0:00:55]}  Nf2+ {[%clk 0:01:15]} 30. Kh2 {[%clk 0:00:51]}  Ng4+ {[%clk 0:01:10]} 31. Kh1 {[%clk 0:00:48]}  b6 {[%clk 0:01:06]} 32. Qc1 {[%clk 0:00:42]}  Qc3 {[%clk 0:01:04]} 33. Rf3 {[%clk 0:00:29]}  Nf2+ {[%clk 0:00:52]} 34. Kh2 {[%clk 0:00:27]}  Nxd1 {[%clk 0:00:52]} 35. Rxc3 {[%clk 0:00:27]}  Nxc3 {[%clk 0:00:53]} 36. Ne1 {[%clk 0:00:22]}  f6 {[%clk 0:00:48]} 37. Nd3 {[%clk 0:00:17]}  c4 {[%clk 0:00:39]} 38. Nb4 {[%clk 0:00:14]}  fxe5 {[%clk 0:00:38]} 39. Nc6 {[%clk 0:00:13]}  exf4 {[%clk 0:00:25]} 40. Nxd8 {[%clk 0:00:13]}  fxg3+ {[%clk 0:00:24]} 41. Kh3 {[%clk 0:00:10]}  Rxd8 {[%clk 0:00:25]} 42. Qf1 {[%clk 0:00:07]}  b5 {[%clk 0:00:23]} 43. Kxg3 {[%clk 0:00:07]}  Bf6 {[%clk 0:00:23]} 44. Qf5 {[%clk 0:00:06]}  Ne2+ {[%clk 0:00:22]} 45. Kh2 {[%clk 0:00:04]}  Nd4 {[%clk 0:00:18]} 46. Bd5+ {[%clk 0:00:03]}  Kf8 {[%clk 0:00:19]} 47. Qe4 {[%clk 0:00:02]}  c3 {[%clk 0:00:19]} 48. Bb3 {[%clk 0:00:02]}  Nxb3 {[%clk 0:00:18]} 49. axb3 {[%clk 0:00:03]}  Rd2+ {[%clk 0:00:18]} 50. Kg3 {[%clk 0:00:02]}  c2 {[%clk 0:00:18]} 51. Qb4+ {[%clk 0:00:03]}  Rd6 {[%clk 0:00:12]} 52. Qxd6+ {[%clk 0:00:03]}  Be7 {[%clk 0:00:08]} 53. Qc6 {[%clk 0:00:04]}  c1=Q {[%clk 0:00:04]} 54. Qxc1 {[%clk 0:00:04]}  a5 {[%clk 0:00:04]} 55. Qf1+ {[%clk 0:00:04]}  Kg8 {[%clk 0:00:04]} 56. Qxb5 {[%clk 0:00:05]}  Bb4 {[%clk 0:00:05]} 57. Qc4+ {[%clk 0:00:06]}  Kh7 {[%clk 0:00:06]} 58. Kf4 {[%clk 0:00:06]}  Kh8 {[%clk 0:00:07]} 59. Kf5 {[%clk 0:00:07]}  Kh7 {[%clk 0:00:08]} 60. Ke6 {[%clk 0:00:07]}  Kh8 {[%clk 0:00:07]} 61. Kf7 {[%clk 0:00:08]}  Kh7 {[%clk 0:00:05]} 62. Qe4+ {[%clk 0:00:08]}  Kh8 {[%clk 0:00:05]} 63. Qe8+ {[%clk 0:00:08]}  Kh7 {[%clk 0:00:06]} 64. Qg8# {[%clk 0:00:09]} 1-0


[Site "https://www.chess.com"]